bitfinex/quotes_ETHUSD_20241130
["timestamp","ask_amount","ask_price","bid_price","bid_amount"]
[1733009136822,0.25058754,3715.8,3714.8,1.6449]
[1733009137026,0.25058754,3715.9,3714.8,1.6449]
[1733009137229,0.29417175,3715.8,3714.8,1.6449]
[1733009137961,1.6313,3715.7,3714.8,1.6449]
[1733009138330,0.25068831,3715.7,3714.8,1.6449]
[1733009138665,0.25068831,3715.7,3714.2,1.6449]
[1733009138823,0.54486006,3715.8,3714.2,1.6449]
[1733009139031,0.48673001,3715.7,3714.2,1.6449]
[1733009142272,0.29417175,3715.8,3714.2,1.6449]
[1733009143656,2.69129,3715.7,3714.2,1.6449]
[1733009143834,2.94180898,3715.7,3714.2,1.6449]
[1733009144456,2.69129,3715.7,3714.2,1.6449]
[1733009144772,2.94175118,3715.7,3714.2,1.6449]
[1733009144959,0.48672229,3715.6,3714.2,1.6449]
[1733009146913,0.40083037,3716.2,3714.6,2.5442366]
[1733009147057,0.54456392,3716.3,3714.8,1.5211]
[1733009149181,0.68265709,3716.8,3714.8,1.5211]
[1733009149381,0.68265709,3716.8,3715.2,1.5211]
[1733009149585,0.25048309,3716.8,3715.6,1.5211]
[1733009149885,0.53080425,3716.8,3715.6,1.5211]
[1733009150696,0.53080425,3716.8,3715.9,1.5211]
[1733009151006,1.11666312,3717.8,3715.9,1.5211]
[1733009151007,0.25048309,3717.7,3716.1,1.5211]
[1733009151216,0.53505887,3717.4,3716.1,1.5211]
[1733009151377,0.25048309,3717.5,3716.3,3.0]
[1733009151701,0.25048309,3717.8,3716.4,1.5211]
[1733009151859,0.78538039,3718.0,3716.4,1.5211]
[1733009152060,2.69,3717.5,3716.4,1.5211]
[1733009152287,0.269,3717.4,3716.4,1.5211]
[1733009152499,0.51948309,3717.4,3716.4,1.5211]
[1733009153208,0.269,3717.4,3716.4,1.5211]
[1733009153700,0.51971992,3717.4,3716.4,1.5211]
[1733009153875,0.269,3717.4,3716.4,1.5211]
[1733009154431,0.32096699,3717.3,3716.4,1.5211]
[1733009154585,0.57168691,3717.3,3716.4,1.5211]
[1733009154759,0.32096699,3717.3,3716.4,1.5211]
[1733009155156,0.57168691,3717.3,3716.4,1.5211]
[1733009155425,3.11592351,3717.3,3715.0,2.5442366]
[1733009155699,1.05585227,3717.2,3715.2,1.5211]
[1733009155899,3.74605227,3717.2,3715.2,1.5211]
[1733009156096,0.25071992,3717.1,3715.2,1.5211]
[1733009156471,0.53911024,3717.0,3715.2,1.5211]
[1733009157262,0.78983016,3717.0,3715.2,1.5211]
[1733009157459,0.46863944,3716.9,3715.2,1.5211]
[1733009158670,3.22945024,3717.0,3715.2,1.5211]
[1733009158883,0.53911024,3717.0,3715.2,1.5211]
[1733009159083,3.22946024,3717.0,3715.2,1.5211]
[1733009159291,0.25054052,3716.9,3715.2,1.5211]
[1733009159501,0.53911024,3717.0,3715.2,1.5211]
[1733009159666,0.4686225,3716.9,3715.2,1.5211]
[1733009160508,0.71916358,3716.9,3715.2,1.5211]
[1733009161569,0.4686225,3716.9,3715.2,1.5211]
[1733009161771,0.4686225,3716.9,3715.5,4.5102]
[1733009161972,0.53911024,3717.0,3715.6,4.5102]
[1733009162196,0.53911024,3717.0,3715.5,3.0]
[1733009162197,0.53911024,3717.0,3715.7,1.5102]
[1733009163315,2.69041,3716.9,3715.7,1.5102]
[1733009163611,0.25054563,3716.9,3715.7,1.5102]
[1733009164181,2.69064,3716.6,3715.7,1.5102]
[1733009164384,2.8133006,3716.5,3714.2,2.5442366]
[1733009164570,2.8133006,3716.5,3714.3,1.5102]
[1733009164571,1.5171,3716.3,3714.3,1.5102]
[1733009164770,2.69122,3715.8,3714.3,1.5102]
[1733009165573,3.23883994,3715.8,3714.3,1.5102]
[1733009166232,2.69128,3715.7,3714.3,1.5102]
[1733009166397,0.32388999,3715.6,3714.3,1.5102]
[1733009166726,0.54761994,3715.8,3714.3,1.5102]
[1733009167086,2.69129,3715.7,3714.3,1.5102]
[1733009167284,2.5442366,3715.7,3714.3,1.5102]
[1733009167484,0.55,3715.6,3714.3,1.5102]
[1733009167787,0.80042116,3715.6,3714.3,1.5102]
[1733009168022,0.65835577,3715.5,3714.3,1.5102]
[1733009168832,0.54761994,3715.8,3714.3,1.5102]
[1733009168984,0.7980411,3715.8,3714.3,1.5102]
[1733009169322,0.25042116,3715.8,3714.4,1.5353]
[1733009169523,1.11666312,3716.4,3714.7,1.5353]
[1733009169524,0.25042116,3716.3,3714.7,1.5353]
[1733009169730,0.54906671,3716.2,3714.7,1.5353]
[1733009169928,0.42001844,3716.1,3714.7,1.5353]
[1733009170720,0.25042116,3716.4,3714.8,3.0]
[1733009170931,2.69056,3716.7,3714.9,1.5877]
[1733009171133,0.25042116,3716.8,3715.1,1.5877]
[1733009171301,0.25042116,3716.8,3715.4,1.5877]
[1733009171625,0.25042116,3717.0,3715.4,1.5877]
[1733009171798,0.66908174,3717.0,3715.4,1.5877]
[1733009172129,0.9195029,3717.0,3715.4,1.5877]
[1733009172330,0.66908174,3717.0,3715.4,1.5877]
[1733009172490,0.9195029,3717.0,3715.4,1.5877]
[1733009172683,0.66908174,3717.0,3715.4,1.5877]
[1733009173029,0.51254025,3716.9,3715.4,1.5877]
[1733009174316,0.5322604,3716.8,3715.4,1.5877]
[1733009175126,0.78268156,3716.8,3715.4,1.5877]
[1733009176016,0.5322604,3716.8,3715.4,1.5877]
[1733009176418,0.78268156,3716.8,3715.4,1.5877]
[1733009176710,0.19643036,3716.7,3715.4,1.5877]
[1733009177758,0.5322604,3716.8,3715.4,1.5877]
[1733009182441,0.25089329,3716.7,3715.4,1.5877]
[1733009183064,0.25089329,3716.9,3715.7,4.5941]
[1733009183368,1.67499468,3717.7,3716.5,4.5941]
[1733009183369,0.25103011,3717.4,3716.5,4.5941]
[1733009183659,0.25103011,3718.0,3716.7,1.5941]
[1733009183862,0.25103011,3718.3,3716.7,1.5941]
[1733009184067,0.25103011,3718.2,3716.7,1.5941]
[1733009184219,2.5442366,3718.6,3716.7,1.5941]
[1733009184220,0.25103011,3718.4,3716.7,1.5941]
[1733009184418,0.25103011,3718.3,3717.0,1.5941]
[1733009184621,0.25103011,3718.7,3717.1,1.5941]
[1733009184817,0.25097969,3718.8,3717.1,1.5941]
[1733009185021,0.25097969,3718.7,3717.1,1.5941]
[1733009185246,0.25097969,3718.8,3717.1,1.5941]
[1733009185435,0.6525472,3718.9,3717.3,1.5941]
[1733009185638,0.58856138,3718.8,3717.4,1.62099636]
[1733009185867,0.25097969,3719.2,3717.4,1.5941]
[1733009186053,0.54346655,3719.2,3717.4,1.62099704]
[1733009186249,0.25097969,3719.5,3717.7,3.0]
[1733009186432,0.40125738,3719.6,3717.6,2.5442366]
[1733009186433,0.25097969,3719.6,3718.0,1.5941]
[1733009186639,2.79521629,3719.7,3718.0,1.5941]
[1733009186839,0.56195591,3719.6,3718.0,1.5941]
[1733009187155,0.56195591,3719.6,3718.1,0.02689227]
[1733009187156,0.8129356,3719.6,3718.1,0.02689227]
[1733009187350,0.53765235,3719.4,3717.9,1.5941]
[1733009187658,0.8129356,3719.6,3718.0,1.62099225]
[1733009187821,2.68833,3719.8,3718.0,1.5941]
[1733009188022,3.0,3719.7,3717.7,3.0]
[1733009188222,0.25022049,3719.6,3717.7,3.0]
[1733009188534,0.52532408,3719.7,3717.7,3.0]
[1733009189139,0.2500433,3720.0,3718.0,2.5442366]
[1733009189466,0.58824789,3719.9,3718.1,3.0]
[1733009189636,2.93770416,3720.4,3718.1,3.0]
[1733009189835,0.24982416,3720.4,3718.5,3.0]
[1733009190156,5.2320466,3720.5,3718.5,3.0]
[1733009190565,2.5442366,3720.9,3718.5,3.0]
[1733009190768,2.5442366,3720.9,3718.9,3.0]
[1733009190923,0.25442366,3720.8,3718.9,3.0]
[1733009191123,2.94206366,3720.8,3719.0,1.5955]
[1733009191525,0.25442366,3720.8,3719.0,1.5955]
[1733009191720,0.79602419,3720.8,3719.0,1.5955]
[1733009193679,2.68776,3720.6,3719.0,1.5955]
[1733009193879,2.68807,3720.2,3719.0,1.5955]
[1733009194045,2.89261502,3720.5,3718.4,2.5442366]
[1733009194046,0.78872085,3720.5,3719.1,0.02688753]
[1733009194256,0.78872085,3720.5,3719.2,1.5955]
[1733009194257,0.34837842,3720.5,3719.2,1.5955]
[1733009195072,3.34837842,3720.5,3719.2,1.5955]
[1733009195299,0.60361184,3720.4,3719.2,1.5955]
[1733009195746,2.68774,3720.6,3719.2,1.5955]
[1733009195952,2.68783,3720.5,3719.2,1.5955]
[1733009196549,0.79602419,3720.8,3719.2,1.5955]
[1733009196550,5.79602419,3720.8,3719.2,1.5955]
[1733009196750,2.6881,3720.1,3719.2,1.5955]
[1733009196951,0.26881,3720.0,3719.2,1.5955]
[1733009197647,0.03914332,3719.9,3719.2,1.5955]
[1733009197949,2.68839,3719.7,3719.2,1.5955]
[1733009198346,2.95704,3720.0,3719.2,1.5955]
[1733009198585,2.68834,3719.8,3719.2,1.5955]
[1733009198788,0.295715,3719.7,3719.2,1.5955]
[1733009200268,2.68846,3719.6,3719.2,1.5955]
[1733009201393,0.26881,3720.0,3719.2,1.5955]
[1733009201569,2.68841,3719.7,3719.2,1.5955]
[1733009202064,2.95698,3720.0,3719.2,1.5955]
[1733009202269,0.26881,3720.0,3719.2,1.5955]
[1733009202449,0.53680659,3719.8,3719.2,1.5955]
[1733009203158,2.68847,3719.6,3719.2,1.5955]
[1733009203587,2.68854,3719.5,3719.2,1.5955]
[1733009203901,0.53680659,3719.8,3719.2,1.5955]
[1733009204059,3.22511659,3719.8,3719.2,1.5955]
[1733009204259,0.35064213,3719.7,3719.2,1.5955]
[1733009206368,0.35064213,3719.7,3718.8,1.5834]
[1733009206369,2.5442366,3719.7,3718.8,1.5834]
[1733009206591,2.68861,3719.4,3718.8,1.5834]
[1733009207880,2.5442366,3719.7,3718.8,1.5834]
[1733009208058,2.68868,3719.3,3718.8,1.5834]
[1733009208307,0.268868,3719.2,3718.8,1.5834]
[1733009212080,0.93751316,3719.8,3718.8,1.5834]
[1733009212081,2.68896,3718.9,3718.8,1.5834]
[1733009212280,2.68891,3719.0,3717.8,1.5834]
[1733009212683,0.25082851,3719.0,3717.8,1.5834]
[1733009212887,2.68902,3718.9,3717.8,1.5834]
[1733009213106,0.268902,3718.8,3717.8,1.5834]
[1733009213409,0.25082851,3718.7,3717.8,1.5834]
[1733009213617,0.268902,3718.8,3717.8,1.5834]
[1733009213786,0.25082851,3718.7,3717.8,1.5834]
[1733009214105,0.51973051,3718.8,3717.8,1.5834]
[1733009214321,0.57169756,3718.7,3717.8,1.5834]
[1733009214498,0.32086905,3718.7,3717.8,1.5834]
[1733009215103,0.57211788,3718.7,3717.8,1.5834]
[1733009215304,0.2513085,3718.6,3717.8,1.5834]
[1733009215487,2.9405885,3718.5,3717.8,1.5834]
[1733009215689,3.26677426,3718.4,3717.8,1.5834]
[1733009215884,0.2513085,3718.3,3717.8,1.5834]
[1733009216193,0.2513085,3718.2,3717.8,1.5834]
[1733009216399,0.2513085,3718.1,3717.8,1.5834]
[1733009216728,0.2513085,3718.2,3717.8,1.5834]
[1733009216927,0.59973255,3718.1,3717.8,1.5834]
[1733009217173,0.34842405,3718.1,3717.8,1.5834]
[1733009217316,0.2513085,3718.2,3717.8,1.5834]
[1733009217751,0.32086905,3718.7,3717.8,1.5834]
[1733009217752,0.2513085,3718.6,3717.8,1.5834]
[1733009217955,0.2513085,3718.5,3717.8,1.5834]
[1733009218153,0.2513085,3718.4,3717.8,1.5834]
[1733009218341,3.00999905,3718.7,3717.8,1.5834]
[1733009218342,0.2513085,3718.6,3717.8,1.5834]
[1733009218524,1.16633967,3718.5,3717.8,1.5834]
[1733009218831,0.91503117,3718.5,3717.8,1.5834]
[1733009219014,1.16633967,3718.5,3717.8,1.5834]
[1733009219219,0.91503117,3718.5,3717.8,1.5834]
[1733009219450,1.16633967,3718.5,3717.8,1.5834]
[1733009219661,0.41763387,3718.4,3717.8,1.5834]
[1733009220149,2.68941,3718.3,3717.8,1.5834]
[1733009220459,3.34404742,3718.5,3717.8,1.5834]
[1733009220460,0.25104297,3718.4,3717.8,1.5834]
[1733009221529,2.94037297,3718.4,3717.8,1.5834]
[1733009222672,0.25104297,3718.4,3717.8,1.5834]
[1733009222877,2.68961,3718.1,3716.4,1.6551]
[1733009223044,2.94051297,3718.2,3716.6,1.6551]
[1733009223228,0.25104297,3718.1,3716.6,1.6551]
[1733009223431,1.5976,3718.0,3716.6,1.6551]
[1733009223636,2.68979,3717.8,3716.6,1.6551]
[1733009223861,0.25104297,3717.8,3716.6,1.6551]
[1733009224375,0.37457162,3718.3,3716.9,1.6551]
[1733009224593,0.25093054,3718.8,3717.0,1.6551]
[1733009224761,2.5442366,3719.2,3716.9,0.02689586]
[1733009224762,0.25093054,3719.1,3717.3,1.6551]
[1733009225072,0.25093054,3719.0,3717.4,3.0]
[1733009225376,0.25093054,3718.9,3717.5,1.6551]
[1733009225668,3.08288628,3719.2,3717.5,1.6551]
[1733009225669,0.2510073,3719.1,3717.5,1.6551]
[1733009225842,0.58439666,3719.0,3717.7,1.6551]
[1733009226044,0.2510073,3719.1,3717.7,1.6551]
[1733009226231,0.2510073,3719.0,3717.7,1.6551]
[1733009226433,0.2510073,3718.9,3717.7,1.6551]
[1733009226743,0.2510073,3719.1,3717.7,1.6551]
[1733009227072,0.53864968,3719.2,3717.7,1.6551]
[1733009227073,0.2510073,3719.0,3717.7,1.6551]
[1733009227268,0.2510073,3718.9,3717.7,1.6551]
[1733009227472,0.2510073,3719.1,3717.7,1.6551]
[1733009227773,0.2510073,3719.0,3717.7,1.6551]
[1733009228085,0.53864968,3719.2,3717.7,1.6551]
[1733009228086,0.2510073,3719.1,3717.7,1.6551]
[1733009228249,0.2510073,3719.0,3717.7,1.6551]
[1733009228446,0.2510073,3719.1,3717.7,1.6551]
[1733009228634,0.53864968,3719.2,3717.3,3.0]
[1733009228635,0.53864968,3719.2,3717.8,1.68199224]
[1733009228836,0.2510073,3719.1,3717.8,1.68199224]
[1733009229135,0.2510073,3719.5,3718.2,1.6551]
[1733009229365,0.2510073,3719.7,3718.2,1.6551]
[1733009229581,0.2510073,3719.6,3718.2,1.6551]
[1733009229807,0.65261898,3720.2,3718.2,1.6551]
[1733009229972,0.65261898,3720.1,3718.2,1.6551]
[1733009230181,0.2510073,3720.0,3718.2,1.6551]
[1733009230377,0.2510073,3719.9,3718.2,1.6551]
[1733009230698,0.2510073,3719.8,3718.2,1.6551]
[1733009230873,0.2510073,3719.7,3718.2,1.6551]
[1733009231078,0.2510073,3720.0,3718.2,1.68198716]
[1733009231306,0.2510073,3719.9,3718.2,1.6551]
[1733009231608,0.2510073,3719.8,3718.2,1.6551]
[1733009231811,0.2510073,3719.7,3718.2,1.6551]
[1733009231976,0.2510073,3719.7,3718.1,3.02688716]
[1733009231977,0.2510073,3719.7,3718.3,1.6551]
[1733009232173,0.2510073,3720.0,3718.3,1.6551]
[1733009232480,0.25106386,3719.9,3718.3,1.6551]
[1733009232806,0.2510386,3719.8,3718.3,1.6551]
[1733009233010,0.2510386,3719.7,3718.3,1.6551]
[1733009233180,0.2510386,3720.0,3718.4,1.6551]
[1733009233393,0.54485091,3720.1,3718.4,1.6551]
[1733009233394,0.2510386,3719.9,3718.4,1.6551]
[1733009233608,0.2510386,3719.8,3718.4,1.6551]
[1733009233828,0.2510386,3719.7,3718.4,1.6551]
[1733009234101,1.8486386,3719.9,3718.4,1.6551]
[1733009234403,1.01362421,3719.8,3718.4,1.6551]
[1733009234564,0.2510386,3719.7,3718.4,1.6551]
[1733009234901,0.2510386,3719.6,3718.4,1.6551]
[1733009235106,0.2510386,3719.5,3718.4,1.6551]
[1733009235274,2.68868,3719.3,3718.4,1.6551]
[1733009235476,0.54501046,3719.2,3718.4,1.6551]
[1733009235676,0.2510386,3719.1,3718.4,1.6551]
[1733009235896,0.250973,3719.0,3718.4,1.6551]
[1733009236188,0.250973,3719.1,3718.4,1.6551]
[1733009236513,0.250973,3719.0,3718.4,1.6551]
[1733009236715,0.250973,3718.9,3718.4,1.6551]
[1733009236875,0.250973,3718.8,3718.4,1.6551]
[1733009237237,0.40155681,3719.1,3718.4,1.6551]
[1733009237238,0.250973,3719.0,3718.4,1.6551]
[1733009237417,0.99929164,3718.9,3718.4,1.6551]
[1733009237730,0.74831864,3718.9,3718.4,1.6551]
[1733009237893,0.250973,3718.8,3718.4,1.6551]
[1733009238290,0.250973,3718.7,3717.1,1.6551]
[1733009238489,4.1418366,3718.4,3717.1,1.6551]
[1733009238687,3.35458989,3718.3,3717.1,1.6551]
[1733009238902,0.25093623,3718.2,3717.1,1.6551]
[1733009239794,0.54678062,3718.2,3717.1,1.6551]
[1733009239990,0.79770279,3718.2,3717.1,1.6551]
[1733009240191,0.54678062,3718.2,3717.1,1.6551]
[1733009240491,0.35052009,3718.1,3717.1,1.6551]
[1733009244457,0.25095425,3718.5,3716.9,1.6442]
[1733009244625,0.25095425,3718.7,3716.9,1.6442]
[1733009244865,0.25095425,3718.8,3716.9,1.6442]
[1733009245066,0.53114681,3718.5,3716.9,1.6442]
[1733009245578,0.53114681,3718.5,3716.9,1.67109685]
[1733009245776,0.53114681,3718.5,3717.0,1.6442]
[1733009246349,0.53114681,3718.5,3717.1,1.67109685]
[1733009246694,0.53114681,3718.5,3717.1,1.6442]
[1733009247083,0.250846,3718.7,3717.1,1.6442]
[1733009247281,2.7950826,3718.8,3717.1,1.6442]
[1733009247596,0.39447657,3718.7,3717.1,1.6442]
[1733009247754,0.64532257,3718.7,3717.3,1.6442]
[1733009247954,0.64532257,3718.7,3717.5,1.6442]
[1733009248379,0.53216939,3718.6,3717.5,1.6442]
[1733009248582,0.99921049,3718.9,3717.6,1.6442]
[1733009248786,0.25089185,3719.0,3717.6,1.6442]
[1733009248969,2.5442366,3718.4,3717.6,1.6442]
[1733009249171,2.68949,3718.2,3717.6,1.6442]
[1733009249894,0.25089185,3718.3,3717.6,1.6442]
[1733009250066,1.5841,3717.9,3717.3,1.6442]
[1733009250271,0.41283366,3717.8,3717.3,1.6442]
[1733009250657,2.68984,3717.7,3717.3,1.6442]
[1733009250904,0.25075407,3717.7,3716.4,1.6442]
[1733009251053,0.66358773,3717.8,3716.4,1.6442]
[1733009251501,2.68986,3717.7,3716.4,1.6442]
[1733009251706,0.49375477,3717.6,3716.4,1.6442]
[1733009252000,0.41283366,3717.8,3716.4,1.6442]
[1733009252153,0.66358773,3717.8,3716.4,1.6442]
[1733009252805,0.53262717,3717.7,3716.4,1.6442]
[1733009253586,0.53262717,3717.7,3716.5,1.6442]
[1733009253807,0.53262717,3717.7,3716.4,1.6442]
[1733009254225,0.25054478,3718.2,3716.5,0.02690215]
[1733009254525,0.25054478,3718.3,3716.6,1.6442]
[1733009255086,0.5377403,3718.1,3716.6,1.6442]
[1733009255593,0.25054478,3718.2,3717.0,4.6442]
[1733009255921,0.25055157,3718.9,3717.1,1.6442]
[1733009256122,1.5841,3719.0,3717.1,1.6442]
[1733009256525,0.55033476,3718.7,3717.1,1.6442]
[1733009261617,1.6468,3718.6,3717.1,1.6442]
[1733009261823,0.55,3718.4,3717.1,1.6442]
[1733009262047,3.68480799,3718.3,3717.1,1.6442]
[1733009262363,2.94012454,3718.2,3717.1,1.6442]
[1733009262529,2.68962,3718.0,3717.1,1.6442]
[1733009262735,4.33642,3718.0,3717.1,1.6442]
[1733009262957,0.25063454,3717.9,3717.1,1.6442]
[1733009263129,3.14850545,3717.8,3717.1,1.6442]
[1733009263331,0.45870545,3717.8,3717.1,1.6442]
[1733009264039,0.70967759,3717.8,3717.1,1.6442]
[1733009264867,0.530852,3717.6,3717.1,1.6442]
[1733009266458,0.530852,3717.6,3715.9,1.5621]
[1733009266667,0.78198114,3717.6,3715.9,1.5621]
[1733009266817,0.530852,3717.6,3715.9,1.5621]
[1733009267018,0.78198114,3717.6,3715.9,1.5621]
[1733009267224,0.25112914,3717.5,3715.9,1.5621]
[1733009269321,0.25112914,3717.4,3715.9,1.5621]
[1733009269475,0.25112914,3717.5,3715.9,1.5621]
[1733009269673,0.25112914,3717.4,3715.9,1.5621]
[1733009269919,0.25112914,3717.5,3715.9,1.5621]
[1733009270099,0.25112914,3717.5,3716.7,1.5621]
[1733009270100,0.25108145,3717.5,3716.7,1.5621]
[1733009270409,0.25108145,3717.9,3716.7,1.5621]
[1733009270570,0.78568016,3717.9,3716.7,1.5621]
[1733009270776,0.25108145,3717.8,3716.7,1.5621]
[1733009271014,0.25108145,3717.7,3716.7,1.5621]
[1733009271220,0.25108145,3717.8,3716.7,1.5621]
[1733009271396,0.25108145,3717.7,3716.7,1.5621]
[1733009271597,0.25108145,3717.8,3716.7,1.5621]
[1733009271796,0.25108145,3717.7,3716.7,1.5621]
[1733009271994,0.25108145,3717.8,3716.7,1.5621]
[1733009272199,0.25108145,3717.7,3716.7,1.5621]
[1733009272480,0.25108145,3717.8,3716.7,1.5621]
[1733009272728,0.25108145,3717.7,3716.7,1.5621]
[1733009272893,0.25108145,3717.8,3716.7,1.5621]
[1733009273222,0.25108145,3717.7,3716.7,1.5621]
[1733009273424,0.25108145,3717.8,3716.7,1.5621]
[1733009273624,0.25108145,3717.7,3716.7,1.5621]
[1733009273918,0.25108145,3717.8,3716.7,1.5621]
[1733009274091,4.58771145,3717.7,3716.7,1.5621]
[1733009274295,0.76331247,3717.6,3716.7,1.5621]
[1733009274477,0.25108145,3717.5,3716.7,1.5621]
[1733009274682,0.25108145,3717.4,3716.7,1.5621]
[1733009274911,0.25108145,3717.5,3716.7,1.5621]
[1733009275079,0.25108145,3717.4,3716.7,1.5621]
[1733009275282,0.24101125,3717.4,3716.7,1.5621]
[1733009275484,0.4920927,3717.4,3716.7,1.5621]
[1733009275723,0.54653925,3717.3,3716.7,1.5621]
[1733009279233,0.79759016,3717.3,3716.7,1.5621]
[1733009279430,0.54653925,3717.3,3716.7,1.5621]
[1733009280010,0.79759016,3717.3,3716.7,1.5621]
[1733009280209,0.54653925,3717.3,3716.7,1.5621]
[1733009280717,0.79759016,3717.3,3716.7,1.5621]
[1733009280923,0.54653925,3717.3,3716.7,1.5621]
[1733009282312,2.5442366,3717.1,3715.5,1.5703]
[1733009282636,2.69049,3716.8,3715.5,1.5703]
[1733009283004,0.25102131,3716.7,3715.5,1.5703]
[1733009283299,1.76362131,3716.7,3715.5,1.5703]
[1733009283604,4.20318,3716.7,3715.5,1.5703]
[1733009283934,0.25102131,3716.6,3715.5,1.5703]
[1733009284105,0.48556702,3716.5,3715.5,1.5703]
[1733009284520,1.5126,3716.7,3715.5,1.5703]
[1733009285096,0.25102131,3716.8,3715.5,1.5703]
[1733009285439,0.25102131,3716.9,3715.6,3.0]
[1733009285613,0.52645462,3717.1,3715.7,1.5703]
[1733009285808,2.69041,3716.9,3715.7,1.5703]
[1733009286044,0.72737012,3716.8,3715.7,1.5703]
[1733009286257,0.97814578,3716.8,3715.7,1.5703]
[1733009288024,0.72737012,3716.8,3715.7,1.5703]
[1733009288227,0.97814578,3716.8,3715.7,1.5703]
[1733009290455,2.94133566,3716.7,3715.7,1.5703]
[1733009290655,0.36687058,3716.6,3715.7,1.5703]
[1733009290855,0.61764624,3716.6,3715.7,1.5703]
[1733009291542,0.36687058,3716.6,3715.7,1.5703]
[1733009291867,0.61764624,3716.6,3715.7,1.5703]
[1733009292415,2.69063,3716.6,3715.7,1.5703]
[1733009292628,2.94140566,3716.6,3715.7,1.5703]
[1733009292826,0.25077566,3716.5,3715.7,1.5703]
[1733009293154,2.69063,3716.6,3715.7,1.5703]
[1733009293365,0.53206325,3716.3,3715.7,1.5703]
[1733009294368,0.25077566,3716.7,3715.7,1.5703]
[1733009294571,0.52689393,3716.5,3715.7,1.5703]
[1733009297456,3.21759393,3716.5,3715.7,1.5703]
[1733009297660,0.25103303,3716.4,3715.7,1.5703]
[1733009297988,0.52689393,3716.5,3715.7,1.5703]
[1733009298156,0.2389627,3716.4,3715.7,1.5703]
[1733009298355,0.52689393,3716.5,3715.7,1.5703]
[1733009298988,0.25103303,3716.7,3715.7,1.5703]
[1733009299146,0.25107374,3717.3,3715.7,1.5703]
[1733009299574,0.54042266,3716.9,3715.7,1.5703]
[1733009300259,0.25109798,3717.4,3715.8,3.0]
[1733009300549,0.25109798,3717.3,3715.9,1.6244]
[1733009300778,0.79302824,3717.2,3715.9,1.6244]
[1733009300986,0.25109798,3717.1,3715.9,1.6244]
[1733009302361,0.25109798,3717.0,3715.9,1.6244]
[1733009302560,0.34832582,3717.0,3715.9,1.6244]
[1733009303602,0.25130595,3716.9,3715.9,1.6244]
[1733009303888,0.81970913,3717.4,3715.9,1.6244]
[1733009304050,0.25131259,3717.3,3715.9,1.6244]
[1733009304251,0.25131259,3717.2,3715.9,1.6244]
[1733009304452,0.25131259,3717.1,3716.0,1.6437]
[1733009304681,0.81970913,3717.4,3716.0,1.6437]
[1733009305114,1.35722426,3717.4,3716.0,1.6437]
[1733009305527,0.25134215,3717.3,3716.0,1.6437]
[1733009306530,1.35722426,3717.4,3716.0,1.6437]
[1733009306733,0.25136262,3717.3,3715.9,1.6437]
[1733009307041,0.53751513,3717.4,3716.3,1.6437]
[1733009307589,0.78887775,3717.4,3716.3,1.6437]
[1733009307821,0.55,3717.3,3716.3,1.6437]
[1733009308034,3.49152139,3717.3,3716.3,1.6437]
[1733009308340,0.81333504,3717.2,3716.3,1.6437]
[1733009308629,0.25133139,3717.1,3716.3,1.6437]
[1733009308846,0.25133139,3717.0,3716.3,1.6437]
[1733009309030,0.25133139,3717.1,3716.3,1.6437]
[1733009309235,0.25133139,3717.0,3716.3,1.6437]
[1733009309405,0.1363335,3717.0,3716.3,1.6437]
[1733009309735,0.25133139,3717.2,3716.3,1.6437]
[1733009309951,0.25133139,3717.3,3716.3,1.6437]
[1733009310113,0.25133139,3717.2,3716.3,1.6437]
[1733009310317,0.25133139,3717.3,3716.3,1.6437]
[1733009310639,0.53751513,3717.4,3716.3,1.6437]
[1733009310640,0.25133139,3717.2,3716.3,1.6437]
[1733009310825,0.25133139,3717.1,3716.3,1.6437]
[1733009311022,0.25133139,3717.0,3716.3,1.6437]
[1733009311224,0.25133139,3716.9,3716.3,1.6437]
[1733009311536,0.25133139,3717.0,3716.3,1.6437]
[1733009311700,0.25133139,3716.9,3716.3,1.6437]
[1733009312041,0.23758465,3717.1,3716.3,1.6437]
[1733009312198,0.25135545,3717.0,3716.3,1.6437]
[1733009312539,0.23758465,3717.1,3716.3,1.6437]
[1733009312779,0.25137774,3717.0,3716.3,1.6437]
[1733009313080,0.23758465,3717.1,3716.3,1.6437]
[1733009313081,0.25137774,3716.9,3716.3,1.6437]
[1733009313285,0.25135978,3716.8,3716.3,1.6437]
[1733009313496,0.23758465,3717.1,3716.3,1.6437]
[1733009313639,2.69042,3716.9,3716.3,1.6437]
[1733009313952,2.69057,3716.7,3715.1,1.5381]
[1733009314151,0.29280047,3716.8,3715.1,1.5381]
[1733009314456,0.25135952,3716.7,3715.1,1.5381]
[1733009314638,0.25135952,3716.6,3715.1,1.5381]
[1733009314841,0.25135952,3716.5,3715.1,1.5381]
[1733009315081,0.25135952,3716.7,3715.1,1.5381]
[1733009315288,0.25135952,3716.6,3715.1,1.5381]
[1733009315588,0.25135952,3716.5,3715.2,1.5381]
[1733009316859,0.52648298,3716.4,3715.2,1.5381]
[1733009318005,0.25135952,3716.6,3715.5,1.5381]
[1733009318170,0.25137561,3716.9,3715.5,1.5381]
[1733009318375,0.25137561,3716.8,3715.6,1.5381]
[1733009318584,0.25138984,3717.0,3715.7,2.5442366]
[1733009318782,0.23758465,3717.1,3715.9,1.5381]
[1733009319094,0.4889866,3717.1,3715.9,1.5381]
[1733009319257,0.23758465,3717.1,3715.9,1.5381]
[1733009319457,0.25140084,3717.2,3715.9,1.5381]
[1733009319659,0.25139578,3717.1,3715.9,1.5381]
[1733009319875,0.25139578,3717.5,3715.9,1.5381]
[1733009320069,0.25139578,3717.4,3715.9,1.5381]
[1733009320313,0.25139578,3717.3,3715.9,1.5381]
[1733009320458,0.25139578,3717.2,3715.9,1.5381]
[1733009320660,0.25139578,3717.1,3715.9,1.5381]
[1733009320891,0.25139578,3717.0,3715.9,1.5381]
[1733009321206,0.25139578,3717.2,3715.9,1.5381]
[1733009321405,0.25139578,3717.1,3715.9,1.5381]
[1733009321707,0.25139578,3717.0,3715.9,1.5381]
[1733009321999,0.25139578,3717.2,3715.9,1.5381]
[1733009322200,0.25139578,3717.1,3715.9,1.5381]
[1733009322412,0.25139578,3717.0,3715.9,1.5381]
[1733009322603,3.23874887,3717.3,3715.9,1.5381]